[Event "*** Titled Tuesday Blitz"]
[Site "Chess.com"]
[Date "2020.10.27"]
[Round "2"]
[White "chessmachine14"]
[Black "Ranindu2003"]
[Result "1-0"]
[WhiteElo "2332"]
[BlackElo "2554"]
[TimeControl "180+1"]
[EndTime "10:18:11 PDT"]
[Termination "chessmachine14 won by resignation"]

1. e4 {[%clk 0:03:00.9]} 1... e5 {[%clk 0:02:58.5]} 2. Nf3 {[%clk 0:02:54.5]}
2... Nc6 {[%clk 0:02:58.5]} 3. Bb5 {[%clk 0:02:54.4]} 3... a6 {[%clk 0:02:58]}
4. Ba4 {[%clk 0:02:54.1]} 4... Nf6 {[%clk 0:02:57.8]} 5. O-O {[%clk 0:02:54.2]}
5... Be7 {[%clk 0:02:56.8]} 6. Re1 {[%clk 0:02:53.7]} 6... b5 {[%clk 0:02:57]}
7. Bb3 {[%clk 0:02:53.4]} 7... d6 {[%clk 0:02:54]} 8. c3 {[%clk 0:02:52.5]} 8...
O-O {[%clk 0:02:52.5]} 9. d4 {[%clk 0:02:52.4]} 9... Bg4 {[%clk 0:02:41.9]} 10.
Be3 {[%clk 0:02:51.7]} 10... Rb8 {[%clk 0:02:28.1]} 11. h3 {[%clk 0:02:48.3]}
11... Bh5 {[%clk 0:02:27.4]} 12. Nbd2 {[%clk 0:02:44.4]} 12... Na5 {[%clk
0:02:24.4]} 13. Bc2 {[%clk 0:02:42.9]} 13... c5 {[%clk 0:02:23.3]} 14. dxe5
{[%clk 0:02:38.5]} 14... dxe5 {[%clk 0:02:23.1]} 15. g4 {[%clk 0:02:38.6]} 15...
Bg6 {[%clk 0:02:18.6]} 16. Nxe5 {[%clk 0:02:38.4]} 16... Qc7 {[%clk 0:02:17.7]}
17. f4 {[%clk 0:02:30.8]} 17... Bd6 {[%clk 0:02:17.3]} 18. Qf3 {[%clk
0:02:26.2]} 18... Bxe5 {[%clk 0:02:14.2]} 19. fxe5 {[%clk 0:02:26.4]} 19... Qxe5
{[%clk 0:02:14.9]} 20. Bf4 {[%clk 0:02:26.1]} 20... Qe6 {[%clk 0:02:09.7]} 21.
Bxb8 {[%clk 0:02:24.3]} 21... Rxb8 {[%clk 0:02:10.6]} 22. Rac1 {[%clk
0:02:08.6]} 22... Nd7 {[%clk 0:02:08.2]} 23. Qf4 {[%clk 0:02:01.7]} 23... Rd8
{[%clk 0:02:07.2]} 24. Nf3 {[%clk 0:02:00]} 24... Nc4 {[%clk 0:02:03.2]} 25. e5
{[%clk 0:01:51.2]} 25... Nxb2 {[%clk 0:01:57.6]} 26. Ng5 {[%clk 0:01:47.3]}
26... Qb6 {[%clk 0:01:28.1]} 27. e6 {[%clk 0:01:40.7]} 27... c4+ {[%clk
0:01:22.8]} 28. Kh2 {[%clk 0:01:38]} 28... fxe6 {[%clk 0:01:13.1]} 29. Bxg6
{[%clk 0:01:36.1]} 29... hxg6 {[%clk 0:01:10]} 30. Rxe6 {[%clk 0:01:36.1]} 30...
Qb8 {[%clk 0:00:59.9]} 31. Qxb8 {[%clk 0:01:09.3]} 31... Nxb8 {[%clk 0:01:00.8]}
32. Rce1 {[%clk 0:01:07.6]} 32... Rf8 {[%clk 0:00:54.6]} 33. Re8 {[%clk
0:01:07.2]} 33... Nd3 {[%clk 0:00:54.8]} 34. R1e7 {[%clk 0:01:04.1]} 34... Nc6
{[%clk 0:00:54.7]} 35. Re6 {[%clk 0:00:59.4]} 35... Nb8 {[%clk 0:00:44.1]} 36.
Rxf8+ {[%clk 0:00:47]} 36... Kxf8 {[%clk 0:00:45]} 37. Rb6 {[%clk 0:00:47]}
37... Nd7 {[%clk 0:00:41.2]} 38. Rxa6 {[%clk 0:00:45.6]} 38... N7e5 {[%clk
0:00:32.8]} 39. Rb6 {[%clk 0:00:42.6]} 39... b4 {[%clk 0:00:33.1]} 40. cxb4
{[%clk 0:00:37.1]} 40... Ke7 {[%clk 0:00:26.7]} 41. Ne4 {[%clk 0:00:35.1]} 41...
Kd7 {[%clk 0:00:24.4]} 42. a4 {[%clk 0:00:34.5]} 42... Kc7 {[%clk 0:00:24.4]}
43. a5 {[%clk 0:00:34.7]} 43... Nb2 {[%clk 0:00:19.8]} 44. Re6 {[%clk
0:00:33.9]} 44... Ned3 {[%clk 0:00:17.9]} 45. a6 {[%clk 0:00:31.7]} 45... Na4
{[%clk 0:00:17]} 46. a7 {[%clk 0:00:31.1]} 46... Kb7 {[%clk 0:00:17]} 47. Ra6
{[%clk 0:00:27.3]} 1-0

[Event "*** Titled Tuesday Blitz"]
[Site "Chess.com"]
[Date "2020.10.27"]
[Round "2"]
[White "saraswathii"]
[Black "PattyCastillo"]
[Result "1-0"]
[WhiteElo "2385"]
[BlackElo "1850"]
[TimeControl "180+1"]
[EndTime "10:18:11 PDT"]
[Termination "saraswathii won on time"]

1. e4 {[%clk 0:03:00.9]} 1... c5 {[%clk 0:02:59]} 2. d3 {[%clk 0:02:58.3]} 2...
d6 {[%clk 0:02:55.6]} 3. Nf3 {[%clk 0:02:55.7]} 3... Nf6 {[%clk 0:02:55.1]} 4.
g3 {[%clk 0:02:54.3]} 4... g6 {[%clk 0:02:54.8]} 5. Bg2 {[%clk 0:02:52.8]} 5...
Bg7 {[%clk 0:02:55.3]} 6. O-O {[%clk 0:02:49.9]} 6... Nc6 {[%clk 0:02:54.3]} 7.
c3 {[%clk 0:02:47.9]} 7... O-O {[%clk 0:02:53.9]} 8. Qe2 {[%clk 0:02:46]} 8...
Qc7 {[%clk 0:02:48.8]} 9. Nbd2 {[%clk 0:02:45]} 9... b5 {[%clk 0:02:45.3]} 10.
Re1 {[%clk 0:02:43.3]} 10... Rb8 {[%clk 0:02:37]} 11. h3 {[%clk 0:02:42.1]}
11... a5 {[%clk 0:02:34.9]} 12. a3 {[%clk 0:02:40.3]} 12... b4 {[%clk
0:02:34.6]} 13. axb4 {[%clk 0:02:32.1]} 13... axb4 {[%clk 0:02:35.5]} 14. Nc4
{[%clk 0:02:29.7]} 14... bxc3 {[%clk 0:02:26.4]} 15. bxc3 {[%clk 0:02:27.6]}
15... Be6 {[%clk 0:02:13.9]} 16. Ne3 {[%clk 0:02:20.3]} 16... Rb3 {[%clk
0:01:53.6]} 17. Bd2 {[%clk 0:02:11.1]} 17... Rfb8 {[%clk 0:01:52.6]} 18. Ng5
{[%clk 0:02:05.6]} 18... Bd7 {[%clk 0:01:42.5]} 19. f4 {[%clk 0:01:57.9]} 19...
h6 {[%clk 0:01:39.2]} 20. Nf3 {[%clk 0:01:54.2]} 20... Nh5 {[%clk 0:01:32.9]}
21. Nd5 {[%clk 0:01:52]} 21... Qd8 {[%clk 0:01:22.1]} 22. g4 {[%clk 0:01:45.3]}
22... Nf6 {[%clk 0:01:12.7]} 23. Nxf6+ {[%clk 0:01:40.5]} 23... Bxf6 {[%clk
0:01:08.9]} 24. e5 {[%clk 0:01:39.3]} 24... Bg7 {[%clk 0:01:03.3]} 25. Qe4
{[%clk 0:01:32.8]} 25... dxe5 {[%clk 0:00:48.7]} 26. Nxe5 {[%clk 0:01:19.3]}
26... Nxe5 {[%clk 0:00:48.4]} 27. fxe5 {[%clk 0:01:20.2]} 27... Be6 {[%clk
0:00:39.7]} 28. Ra7 {[%clk 0:01:10.4]} 28... Rb2 {[%clk 0:00:21.1]} 29. Be3
{[%clk 0:01:07.1]} 29... Rxg2+ {[%clk 0:00:12.8]} 30. Qxg2 {[%clk 0:01:05.3]}
30... Qxd3 {[%clk 0:00:12.8]} 31. Qd2 {[%clk 0:01:02.5]} 31... Qxd2 {[%clk
0:00:08.4]} 32. Bxd2 {[%clk 0:01:03.3]} 32... Rb2 {[%clk 0:00:08.3]} 33. Bf4
{[%clk 0:00:59.9]} 33... Bd5 {[%clk 0:00:05.1]} 34. Rxe7 {[%clk 0:00:54]} 34...
Rg2+ {[%clk 0:00:04.5]} 35. Kf1 {[%clk 0:00:53.5]} 35... Rc2 {[%clk 0:00:02]}
36. Rd1 {[%clk 0:00:42.3]} 36... Bc4+ {[%clk 0:00:02.2]} 37. Kg1 {[%clk
0:00:41.6]} 37... g5 {[%clk 0:00:02.7]} 38. Rd8+ {[%clk 0:00:40.1]} 38... Kh7
{[%clk 0:00:02.3]} 39. Bg3 {[%clk 0:00:39.9]} 39... Kg6 {[%clk 0:00:02]} 40. Rc7
{[%clk 0:00:34]} 40... Rc1+ {[%clk 0:00:02.1]} 41. Kf2 {[%clk 0:00:30]} 41...
Rc2+ {[%clk 0:00:01.8]} 42. Ke1 {[%clk 0:00:26.9]} 42... Rxc3 {[%clk 0:00:01.9]}
43. Bh2 {[%clk 0:00:20.2]} 1-0

[Event "*** Titled Tuesday Blitz"]
[Site "Chess.com"]
[Date "2020.10.27"]
[Round "2"]
[White "canary2016"]
[Black "googlegoom"]
[Result "0-1"]
[WhiteElo "1961"]
[BlackElo "2398"]
[TimeControl "180+1"]
[EndTime "10:18:13 PDT"]
[Termination "googlegoom won on time"]

1. d4 {[%clk 0:03:00.9]} 1... d5 {[%clk 0:02:58.9]} 2. c4 {[%clk 0:02:59.3]}
2... c6 {[%clk 0:02:52.6]} 3. Nf3 {[%clk 0:02:58.3]} 3... Nf6 {[%clk 0:02:52.5]}
4. g3 {[%clk 0:02:58]} 4... e6 {[%clk 0:02:52.4]} 5. Bg2 {[%clk 0:02:58.2]} 5...
Be7 {[%clk 0:02:53]} 6. O-O {[%clk 0:02:57.9]} 6... b6 {[%clk 0:02:53.5]} 7. Qc2
{[%clk 0:02:55.4]} 7... Bb7 {[%clk 0:02:53.8]} 8. Nbd2 {[%clk 0:02:54.9]} 8...
O-O {[%clk 0:02:52.8]} 9. e4 {[%clk 0:02:53.9]} 9... Nbd7 {[%clk 0:02:53.4]} 10.
e5 {[%clk 0:02:53.3]} 10... Ne8 {[%clk 0:02:53.4]} 11. Rd1 {[%clk 0:02:52.4]}
11... Nc7 {[%clk 0:02:48.4]} 12. Qd3 {[%clk 0:02:48.2]} 12... Rc8 {[%clk
0:02:46.4]} 13. b3 {[%clk 0:02:47.1]} 13... c5 {[%clk 0:02:45.3]} 14. Bb2 {[%clk
0:02:46.3]} 14... dxc4 {[%clk 0:02:44.3]} 15. Nxc4 {[%clk 0:02:44.4]} 15... Nd5
{[%clk 0:02:44.3]} 16. Nfd2 {[%clk 0:02:39.5]} 16... Nb4 {[%clk 0:02:39.7]} 17.
Qe2 {[%clk 0:02:38.9]} 17... Bxg2 {[%clk 0:02:39.4]} 18. Kxg2 {[%clk 0:02:38.5]}
18... Qc7 {[%clk 0:02:39.1]} 19. Ne4 {[%clk 0:02:32.9]} 19... Qb7 {[%clk
0:02:32.9]} 20. Kg1 {[%clk 0:02:32.5]} 20... Rcd8 {[%clk 0:02:25.9]} 21. Ned6
{[%clk 0:02:30.6]} 21... Qb8 {[%clk 0:02:26.3]} 22. a3 {[%clk 0:02:27]} 22...
Nd5 {[%clk 0:02:25.8]} 23. Rac1 {[%clk 0:02:25.9]} 23... cxd4 {[%clk 0:02:19.3]}
24. Bxd4 {[%clk 0:02:23.5]} 24... Nc5 {[%clk 0:02:02.4]} 25. Bxc5 {[%clk
0:02:16.2]} 25... bxc5 {[%clk 0:02:02.4]} 26. Qf3 {[%clk 0:02:12.4]} 26... Nb6
{[%clk 0:01:56.5]} 27. Rc2 {[%clk 0:01:32.1]} 27... Nxc4 {[%clk 0:01:52.3]} 28.
Nxc4 {[%clk 0:01:31.6]} 28... Rxd1+ {[%clk 0:01:51.7]} 29. Qxd1 {[%clk
0:01:31.6]} 29... Qxb3 {[%clk 0:01:52.1]} 30. Rc1 {[%clk 0:01:23.5]} 30... Qb7
{[%clk 0:01:27.3]} 31. Nd6 {[%clk 0:01:20.2]} 31... Qc6 {[%clk 0:01:26.9]} 32.
Nc4 {[%clk 0:01:13]} 32... Rd8 {[%clk 0:01:26]} 33. Qc2 {[%clk 0:01:08.5]} 33...
Rd5 {[%clk 0:01:23.2]} 34. Rd1 {[%clk 0:01:07.4]} 34... g6 {[%clk 0:01:22.1]}
35. Rb1 {[%clk 0:01:05.2]} 35... Qc7 {[%clk 0:01:12.4]} 36. Qb3 {[%clk
0:01:02.1]} 36... Bf8 {[%clk 0:00:54]} 37. Qf3 {[%clk 0:00:52.6]} 37... Bg7
{[%clk 0:00:49]} 38. Re1 {[%clk 0:00:36.7]} 38... Bxe5 {[%clk 0:00:39]} 39. Nxe5
{[%clk 0:00:35.1]} 39... Rxe5 {[%clk 0:00:39.3]} 40. Qa8+ {[%clk 0:00:30.9]}
40... Kg7 {[%clk 0:00:38.5]} 41. Rxe5 {[%clk 0:00:30.4]} 41... Qxe5 {[%clk
0:00:38.7]} 42. Qxa7 {[%clk 0:00:29.9]} 42... c4 {[%clk 0:00:36.2]} 43. Qa4
{[%clk 0:00:07.3]} 43... c3 {[%clk 0:00:34.2]} 44. Qc2 {[%clk 0:00:06.5]} 44...
Qe1+ {[%clk 0:00:32.8]} 45. Kg2 {[%clk 0:00:06.2]} 45... Qd2 {[%clk 0:00:33.2]}
46. Qb1 {[%clk 0:00:04.6]} 46... c2 {[%clk 0:00:27.9]} 47. Qb2+ {[%clk
0:00:03.7]} 47... f6 {[%clk 0:00:28.2]} 48. a4 {[%clk 0:00:03.1]} 48... Qd5+
{[%clk 0:00:23.1]} 0-1

[Event "*** Titled Tuesday Blitz"]
[Site "Chess.com"]
[Date "2020.10.27"]
[Round "2"]
[White "ArjunErigaisi2003"]
[Black "manitodeplomo"]
[Result "1-0"]
[WhiteElo "3004"]
[BlackElo "2630"]
[TimeControl "180+1"]
[EndTime "10:18:16 PDT"]
[Termination "ArjunErigaisi2003 won by resignation"]

1. Nf3 {[%clk 0:02:56.4]} 1... h6 {[%clk 0:02:57.8]} 2. d4 {[%clk 0:02:54.3]}
2... g5 {[%clk 0:02:58.2]} 3. e4 {[%clk 0:02:53.8]} 3... Bg7 {[%clk 0:02:58.7]}
4. Nc3 {[%clk 0:02:53.6]} 4... e6 {[%clk 0:02:59.3]} 5. Be3 {[%clk 0:02:52.5]}
5... d6 {[%clk 0:02:59.8]} 6. Bd3 {[%clk 0:02:50]} 6... a6 {[%clk 0:02:58.2]} 7.
Ne2 {[%clk 0:02:50.2]} 7... g4 {[%clk 0:02:54.5]} 8. Nd2 {[%clk 0:02:49.9]} 8...
h5 {[%clk 0:02:55.4]} 9. c3 {[%clk 0:02:49.4]} 9... Nc6 {[%clk 0:02:50.6]} 10.
h3 {[%clk 0:02:49.3]} 10... gxh3 {[%clk 0:02:43.4]} 11. Rxh3 {[%clk 0:02:50.2]}
11... e5 {[%clk 0:02:43.8]} 12. Rh1 {[%clk 0:02:45.7]} 12... Nf6 {[%clk
0:02:41.3]} 13. d5 {[%clk 0:02:43.1]} 13... Ne7 {[%clk 0:02:39.6]} 14. f3 {[%clk
0:02:39.6]} 14... h4 {[%clk 0:02:38]} 15. Qc2 {[%clk 0:02:38.2]} 15... Ng6
{[%clk 0:02:37.2]} 16. O-O-O {[%clk 0:02:37.4]} 16... c6 {[%clk 0:02:30.7]} 17.
c4 {[%clk 0:02:31.5]} 17... c5 {[%clk 0:02:21.4]} 18. Kb1 {[%clk 0:02:28.4]}
18... Bd7 {[%clk 0:02:17.5]} 19. Nc3 {[%clk 0:02:25.9]} 19... Bh6 {[%clk
0:01:56.9]} 20. Bxh6 {[%clk 0:02:22.1]} 20... Rxh6 {[%clk 0:01:57.8]} 21. Rdg1
{[%clk 0:02:22]} 21... Rh8 {[%clk 0:01:47]} 22. Nf1 {[%clk 0:02:20.2]} 22... Nh5
{[%clk 0:01:44.6]} 23. g3 {[%clk 0:02:16.8]} 23... hxg3 {[%clk 0:01:42.7]} 24.
Nxg3 {[%clk 0:02:16.6]} 24... Nxg3 {[%clk 0:01:30.8]} 25. Rxh8+ {[%clk
0:02:12.7]} 25... Nxh8 {[%clk 0:01:31.7]} 26. Qh2 {[%clk 0:02:13.1]} 26... Ng6
{[%clk 0:01:27.3]} 27. Rxg3 {[%clk 0:02:08.1]} 27... Qf6 {[%clk 0:01:26.8]} 28.
Bf1 {[%clk 0:02:01.9]} 28... Ke7 {[%clk 0:01:25.2]} 29. Ne2 {[%clk 0:01:55.5]}
29... Rh8 {[%clk 0:01:25.1]} 30. Qf2 {[%clk 0:01:54.6]} 30... Rh1 {[%clk
0:01:17.3]} 31. Rg1 {[%clk 0:01:49.9]} 31... Rxg1 {[%clk 0:01:16.2]} 32. Nxg1
{[%clk 0:01:50.8]} 32... Qg5 {[%clk 0:01:14]} 33. Bh3 {[%clk 0:01:44.3]} 33...
Qh4 {[%clk 0:01:09.1]} 34. Qxh4+ {[%clk 0:01:42.4]} 34... Nxh4 {[%clk 0:01:10]}
35. Bxd7 {[%clk 0:01:43.3]} 35... Kxd7 {[%clk 0:01:10.4]} 36. Kc2 {[%clk
0:01:44.2]} 36... f5 {[%clk 0:01:10.6]} 37. Kd3 {[%clk 0:01:42.1]} 37... Ke7
{[%clk 0:01:05.9]} 38. Ke3 {[%clk 0:01:41.7]} 38... f4+ {[%clk 0:01:03.6]} 39.
Kf2 {[%clk 0:01:41.5]} 39... b5 {[%clk 0:01:02.6]} 40. cxb5 {[%clk 0:01:35.7]}
40... axb5 {[%clk 0:01:03.5]} 41. Ne2 {[%clk 0:01:36.6]} 41... Kd7 {[%clk
0:00:53.1]} 42. Nc3 {[%clk 0:01:24.8]} 42... b4 {[%clk 0:00:44.1]} 43. Na4
{[%clk 0:01:24.9]} 43... Kc7 {[%clk 0:00:42.1]} 44. b3 {[%clk 0:01:21.6]} 44...
Kb7 {[%clk 0:00:41]} 45. Nb2 {[%clk 0:01:21.7]} 45... Kc7 {[%clk 0:00:38.9]} 46.
Nc4 {[%clk 0:01:20.9]} 46... Kd7 {[%clk 0:00:38.1]} 47. Nd2 {[%clk 0:01:17.8]}
47... Kc7 {[%clk 0:00:37.2]} 48. Kg1 {[%clk 0:01:17.4]} 48... Kb6 {[%clk
0:00:20]} 49. Nc4+ {[%clk 0:01:12.9]} 49... Kc7 {[%clk 0:00:19.9]} 50. Nd2
{[%clk 0:01:13.1]} 50... Kb6 {[%clk 0:00:20]} 51. Kh2 {[%clk 0:01:13.7]} 51...
Kb5 {[%clk 0:00:19.6]} 52. Kh3 {[%clk 0:01:12.7]} 52... Nxf3 {[%clk 0:00:19.5]}
53. Nxf3 {[%clk 0:01:13.6]} 53... c4 {[%clk 0:00:20.1]} 54. Kg4 {[%clk
0:01:02.2]} 54... Kc5 {[%clk 0:00:19.9]} 55. bxc4 {[%clk 0:00:49.8]} 55... Kxc4
{[%clk 0:00:20.8]} 56. Nxe5+ {[%clk 0:00:50.5]} 56... Kd4 {[%clk 0:00:16.4]} 57.
Kxf4 {[%clk 0:00:48.9]} 57... dxe5+ {[%clk 0:00:15.9]} 58. Kf5 {[%clk
0:00:49.5]} 58... Kc3 {[%clk 0:00:14.1]} 59. d6 {[%clk 0:00:49.3]} 59... Kb2
{[%clk 0:00:15]} 60. d7 {[%clk 0:00:49.6]} 60... Kxa2 {[%clk 0:00:15.9]} 61.
d8=Q {[%clk 0:00:50]} 61... b3 {[%clk 0:00:16.8]} 62. Qd5 {[%clk 0:00:50.2]} 1-0

[Event "*** Titled Tuesday Blitz"]
[Site "Chess.com"]
[Date "2020.10.27"]
[Round "2"]
[White "TotsukaBlade"]
[Black "beto-betun"]
[Result "1-0"]
[WhiteElo "2442"]
[BlackElo "2196"]
[TimeControl "180+1"]
[EndTime "10:18:16 PDT"]
[Termination "TotsukaBlade won by resignation"]

1. e4 {[%clk 0:03:00.9]} 1... c5 {[%clk 0:02:56.1]} 2. Nf3 {[%clk 0:03:00.9]}
2... d6 {[%clk 0:02:55.4]} 3. Bb5+ {[%clk 0:03:01]} 3... Nd7 {[%clk 0:02:52.2]}
4. Ba4 {[%clk 0:03:00.8]} 4... a6 {[%clk 0:02:50]} 5. c3 {[%clk 0:02:55.7]} 5...
Nf6 {[%clk 0:02:43.8]} 6. O-O {[%clk 0:02:47]} 6... Nxe4 {[%clk 0:02:31.8]} 7.
Re1 {[%clk 0:02:47.1]} 7... Nf6 {[%clk 0:02:28.7]} 8. d4 {[%clk 0:02:47.3]} 8...
b5 {[%clk 0:02:19.6]} 9. Bc2 {[%clk 0:02:44.4]} 9... g6 {[%clk 0:02:08.2]} 10.
a4 {[%clk 0:02:30.2]} 10... Bb7 {[%clk 0:02:03.2]} 11. axb5 {[%clk 0:02:25.5]}
11... axb5 {[%clk 0:02:04.1]} 12. Rxa8 {[%clk 0:02:23.1]} 12... Bxa8 {[%clk
0:02:04.9]} 13. dxc5 {[%clk 0:02:20.2]} 13... Nxc5 {[%clk 0:02:00]} 14. Na3
{[%clk 0:02:10]} 14... Bc6 {[%clk 0:01:46.2]} 15. Nd4 {[%clk 0:02:09]} 15... Bd7
{[%clk 0:01:24.4]} 16. Ndxb5 {[%clk 0:01:51.5]} 16... Bg7 {[%clk 0:01:23.8]} 17.
Nxd6+ {[%clk 0:01:35.3]} 17... Kf8 {[%clk 0:01:19.9]} 18. Ndc4 {[%clk
0:01:31.8]} 18... h6 {[%clk 0:01:14.1]} 19. b4 {[%clk 0:01:30.4]} 19... Ne6
{[%clk 0:01:11.9]} 20. Ne5 {[%clk 0:01:21.9]} 20... Qc8 {[%clk 0:01:03.8]} 21.
Bb3 {[%clk 0:01:07]} 21... Ng5 {[%clk 0:00:51]} 22. Bxg5 {[%clk 0:00:58.4]}
22... hxg5 {[%clk 0:00:49.9]} 23. Nxf7 {[%clk 0:00:54.8]} 23... Rh4 {[%clk
0:00:43.9]} 24. Ne5 {[%clk 0:00:50]} 24... Bf5 {[%clk 0:00:39.9]} 25. Bc2 {[%clk
0:00:44.2]} 25... Kg8 {[%clk 0:00:23]} 26. Nxg6 {[%clk 0:00:38.7]} 26... Bxg6
{[%clk 0:00:20.2]} 27. Bxg6 {[%clk 0:00:38.8]} 27... Qg4 {[%clk 0:00:12.7]} 28.
Qxg4 {[%clk 0:00:35.2]} 28... Nxg4 {[%clk 0:00:12.9]} 29. h3 {[%clk 0:00:32.1]}
29... Nh6 {[%clk 0:00:11]} 30. Re3 {[%clk 0:00:21]} 30... Bf6 {[%clk 0:00:09.3]}
31. Nb5 {[%clk 0:00:20.1]} 31... Kg7 {[%clk 0:00:08.8]} 32. Bc2 {[%clk
0:00:19.8]} 32... Nf7 {[%clk 0:00:09.3]} 33. Nc7 {[%clk 0:00:19.5]} 33... Ne5
{[%clk 0:00:09.5]} 34. Ne6+ {[%clk 0:00:19.1]} 34... Kh8 {[%clk 0:00:09.1]} 35.
Nxg5 {[%clk 0:00:18.9]} 35... Nc4 {[%clk 0:00:07.1]} 36. Rg3 {[%clk 0:00:18.8]}
36... Bxg5 {[%clk 0:00:06.4]} 37. Rxg5 {[%clk 0:00:18.8]} 37... Rf4 {[%clk
0:00:07]} 38. b5 {[%clk 0:00:18.3]} 38... Nd2 {[%clk 0:00:06.7]} 39. b6 {[%clk
0:00:17.6]} 39... Rf6 {[%clk 0:00:06.2]} 40. Rb5 {[%clk 0:00:16.3]} 40... Rc6
{[%clk 0:00:05.8]} 41. b7 {[%clk 0:00:16.1]} 41... Rxc3 {[%clk 0:00:06.4]} 42.
b8=Q+ {[%clk 0:00:16.3]} 42... Kg7 {[%clk 0:00:07]} 43. Rg5+ {[%clk 0:00:16]}
43... Kf6 {[%clk 0:00:06.8]} 44. Qe5+ {[%clk 0:00:16.1]} 1-0

[Event "*** Titled Tuesday Blitz"]
[Site "Chess.com"]
[Date "2020.10.27"]
[Round "2"]
[White "MarkoPe"]
[Black "PhileKhoob"]
[Result "0-1"]
[WhiteElo "2196"]
[BlackElo "2443"]
[TimeControl "180+1"]
[EndTime "10:18:18 PDT"]
[Termination "PhileKhoob won on time"]

1. c4 {[%clk 0:03:00.5]} 1... Nf6 {[%clk 0:02:58.3]} 2. Nc3 {[%clk 0:02:58.2]}
2... d5 {[%clk 0:02:59.2]} 3. cxd5 {[%clk 0:02:57.2]} 3... Nxd5 {[%clk 0:02:59]}
4. g3 {[%clk 0:02:56.8]} 4... g6 {[%clk 0:02:59.2]} 5. Bh3 {[%clk 0:02:56.6]}
5... Nb6 {[%clk 0:03:00.1]} 6. Bg2 {[%clk 0:02:37.9]} 6... Bg7 {[%clk
0:02:53.1]} 7. Nf3 {[%clk 0:02:35.3]} 7... Nc6 {[%clk 0:02:52.1]} 8. O-O {[%clk
0:02:34.4]} 8... O-O {[%clk 0:02:52.6]} 9. a3 {[%clk 0:02:30.8]} 9... e5 {[%clk
0:02:52.1]} 10. b4 {[%clk 0:02:26]} 10... h6 {[%clk 0:02:49]} 11. Rb1 {[%clk
0:02:02.1]} 11... Be6 {[%clk 0:02:48.9]} 12. Qc2 {[%clk 0:01:52.8]} 12... Nd4
{[%clk 0:02:44.7]} 13. Nxd4 {[%clk 0:01:52.2]} 13... exd4 {[%clk 0:02:45.6]} 14.
Ne4 {[%clk 0:01:52.2]} 14... Bd5 {[%clk 0:02:45.9]} 15. Bb2 {[%clk 0:01:44.5]}
15... c6 {[%clk 0:02:45.3]} 16. d3 {[%clk 0:01:40.5]} 16... Re8 {[%clk
0:02:37.7]} 17. Rfe1 {[%clk 0:01:39.1]} 17... Rc8 {[%clk 0:02:33.7]} 18. Qc5
{[%clk 0:01:37.3]} 18... Na4 {[%clk 0:02:12.9]} 19. Qd6 {[%clk 0:00:58.2]} 19...
Nc3 {[%clk 0:01:34.3]} 20. Qxd8 {[%clk 0:00:38.9]} 20... Rcxd8 {[%clk
0:01:35.2]} 21. Nxc3 {[%clk 0:00:38.4]} 21... dxc3 {[%clk 0:01:33.5]} 22. Ba1
{[%clk 0:00:26]} 22... f5 {[%clk 0:01:15.4]} 23. Bxd5+ {[%clk 0:00:25.1]} 23...
cxd5 {[%clk 0:01:14.6]} 24. Rbc1 {[%clk 0:00:25.3]} 24... d4 {[%clk 0:01:15]}
25. e4 {[%clk 0:00:22.2]} 25... dxe3 {[%clk 0:01:14.9]} 26. Bxc3 {[%clk
0:00:16.9]} 26... Rxd3 {[%clk 0:00:57.9]} 27. Bxg7 {[%clk 0:00:14.1]} 27... Kxg7
{[%clk 0:00:58.8]} 28. Rxe3 {[%clk 0:00:11.2]} 28... Rexe3 {[%clk 0:00:51.1]}
29. fxe3 {[%clk 0:00:12.1]} 29... Rxe3 {[%clk 0:00:52]} 30. Rc7+ {[%clk
0:00:10.8]} 30... Kf6 {[%clk 0:00:52.4]} 31. Rxb7 {[%clk 0:00:11.4]} 31... Rxa3
{[%clk 0:00:53]} 32. Kg2 {[%clk 0:00:10.8]} 32... h5 {[%clk 0:00:52.6]} 33. h4
{[%clk 0:00:10.9]} 33... f4 {[%clk 0:00:46.7]} 34. gxf4 {[%clk 0:00:09.9]} 34...
Kf5 {[%clk 0:00:47.3]} 35. Rf7+ {[%clk 0:00:04.8]} 35... Kg4 {[%clk 0:00:46.5]}
36. Rg7 {[%clk 0:00:05.2]} 36... Ra2+ {[%clk 0:00:44.7]} 37. Kf1 {[%clk
0:00:03.7]} 37... Kxh4 {[%clk 0:00:35.7]} 38. Rxg6 {[%clk 0:00:02.5]} 38... Rb2
{[%clk 0:00:36.2]} 39. Ra6 {[%clk 0:00:01.3]} 39... Kg3 {[%clk 0:00:27.9]} 40.
Rxa7 {[%clk 0:00:02.2]} 40... Rb1+ {[%clk 0:00:28.2]} 41. Ke2 {[%clk 0:00:02.3]}
41... h4 {[%clk 0:00:28.7]} 42. Rg7+ {[%clk 0:00:01.1]} 42... Kxf4 {[%clk
0:00:28.5]} 43. Kf2 {[%clk 0:00:00.3]} 43... Rb2+ {[%clk 0:00:28.3]} 0-1